fUSD/lending_fUSD_20240614
["ID","MTS","AMOUNT","RATE_DAILY","PERIOD"]
[329468983,1718382512779,-670.88,0.00024383,3]
[329468984,1718382512844,-574.95,0.00024383,3]
[329468985,1718382512894,-500.0,0.00024383,3]
[329468986,1718382512931,-500.0,0.00024383,3]
[329468987,1718382512970,-500.0,0.00024383,3]
[329468988,1718382513023,-500.0,0.00024383,3]
[329468989,1718382513072,-500.0,0.00024383,3]
[329468990,1718382513136,-500.0,0.00024383,3]
[329468991,1718382513216,-500.0,0.00024383,3]
[329468992,1718382513268,-1734.14,0.00024383,3]
[329468993,1718382513324,-612.09,0.00024383,3]
[329468994,1718382513372,-500.0,0.00024383,3]
[329468995,1718382513437,-500.0,0.00024383,3]
[329468996,1718382513507,-500.0,0.00024383,3]
[329468997,1718382513546,-673.58,0.00024383,3]
[329468998,1718382513762,-500.0,0.00024383,3]
[329468999,1718382513812,-500.0,0.00024383,3]
[329469000,1718382513892,-633.38,0.00024383,3]
[329469001,1718382513968,-500.0,0.00024383,3]
[329469002,1718382514034,-538.68,0.00024383,3]
[329469003,1718382514107,-500.0,0.00024383,3]
[329469004,1718382514159,-500.0,0.00024383,3]
[329469005,1718382514248,-624.88,0.00024383,3]
[329469006,1718382514295,-572.49095858,0.00024383,3]
[329469007,1718382514352,-1004.01,0.00024383,3]
[329469008,1718382514426,-597.68,0.00024383,3]
[329469009,1718382514506,-733.92,0.00024383,3]
[329469010,1718382514559,-500.0,0.00024383,3]
[329469011,1718382514597,-500.0,0.00024383,3]
[329469012,1718382514650,-510.37,0.00024383,3]
[329469013,1718382514706,-500.0,0.00024383,3]
[329469014,1718382514761,-500.0,0.00024383,3]
[329469015,1718382514814,-763.72,0.00024383,3]
[329469016,1718382514857,-521.38,0.00024383,3]
[329469017,1718382514909,-500.0,0.00024383,3]
[329469018,1718382514963,-500.0,0.00024383,3]
[329469019,1718382515002,-500.0,0.00024383,3]
[329469020,1718382515082,-500.0,0.00024383,3]
[329469021,1718382515148,-500.0,0.00024383,3]
[329469022,1718382515218,-500.0,0.00024383,3]
[329469023,1718382515279,-618.42,0.00024383,3]
[329469024,1718382515329,-540.25,0.00024383,3]
[329469025,1718382515369,-500.0,0.00024383,3]
[329469026,1718382515408,-500.0,0.00024383,3]
[329469027,1718382515522,-500.0,0.00024383,3]
[329469028,1718382515576,-500.0,0.00024383,3]
[329469029,1718382515656,-500.0,0.00024383,3]
[329469030,1718382515773,-500.0,0.00024383,3]
[329469031,1718382515866,-500.0,0.00024383,3]
[329469032,1718382515970,-640.05,0.00024383,3]
[329469033,1718382516013,-590.79,0.00024383,3]
[329469034,1718382516062,-500.0,0.00024383,3]
[329469035,1718382516116,-500.0,0.00024383,3]
[329469036,1718382516205,-500.0,0.00024383,3]
[329469037,1718382516293,-500.0,0.00024383,3]
[329469038,1718382516367,-899.12,0.00024383,3]
[329469039,1718382516478,-1087.94,0.00024383,3]
[329469040,1718382516568,-500.0,0.00024383,3]
[329469041,1718382516636,-619.45,0.00024383,3]
[329469042,1718382516683,-500.0,0.00024383,3]
[329469043,1718382516737,-511.68,0.00024383,3]
[329469044,1718382516814,-1789.44,0.00024383,3]
[329469045,1718382516868,-500.0,0.00024383,3]
[329469046,1718382516931,-501.34,0.00024383,3]
[329469047,1718382517006,-500.0,0.00024383,3]
[329469048,1718382517069,-713.67,0.00024383,3]
[329469049,1718382517126,-500.0,0.00024383,3]
[329469050,1718382517222,-500.0,0.00024383,3]
[329469051,1718382517277,-548.11,0.00024383,3]
[329469052,1718382517367,-500.0,0.00024383,3]
[329469053,1718382517447,-500.0,0.00024383,3]
[329469054,1718382517502,-20815.16,0.00024383,3]
[329469055,1718382517563,-500.0,0.00024383,3]
[329469056,1718382517619,-763.77,0.00024383,3]
[329469057,1718382517693,-500.0,0.00024383,3]
[329469058,1718382517764,-500.0,0.00024383,3]
[329469059,1718382517872,-1084.12,0.00024383,3]
[329469060,1718382517941,-500.0,0.00024383,3]
[329469061,1718382518062,-500.0,0.00024383,3]
[329469062,1718382518137,-500.0,0.00024383,3]
[329469063,1718382518261,-500.0,0.00024383,3]
[329469064,1718382518310,-1683.92,0.00024383,3]
[329469065,1718382518362,-1076.42,0.00024383,3]
[329469066,1718382518471,-500.0,0.00024383,3]
[329469067,1718382518545,-428.43695738,0.00024383,3]
[329469068,1718382518614,-500.0,0.00024383,3]
[329469069,1718382518689,-500.0,0.00024383,3]
[329469070,1718382518775,-3457.17,0.00024383,3]
[329469071,1718382518835,-500.0,0.00024383,3]
[329469072,1718382518894,-500.0,0.00024383,3]
[329469073,1718382518963,-500.0,0.00024383,3]
[329469074,1718382519062,-565.19284478,0.00024383,3]
[329469075,1718382519136,-500.0,0.00024383,3]
[329469076,1718382519211,-512.15,0.00024383,3]
[329469077,1718382519294,-500.0,0.00024383,3]
[329469078,1718382519377,-611.46,0.00024383,3]
[329469079,1718382519435,-500.0,0.00024383,3]
[329469080,1718382519515,-3042.23,0.00024383,3]
[329469081,1718382519591,-914.22,0.00024383,3]
[329469082,1718382519641,-573.96,0.00024383,3]
[329469083,1718382519709,-1909.78,0.00024383,3]
[329469084,1718382519986,-517.33,0.00024383,3]
[329469085,1718382520075,-831.61,0.00024383,3]
[329469086,1718382520149,-662.73,0.00024383,3]
[329469087,1718382520219,-500.0,0.00024383,3]
[329469088,1718382520294,-500.0,0.00024383,3]
[329469089,1718382520348,-500.0,0.00024383,3]
[329469090,1718382520398,-622.18,0.00024383,3]
[329469091,1718382520452,-500.0,0.00024383,3]
[329469092,1718382520529,-606.5,0.00024383,3]
[329469093,1718382520598,-500.0,0.00024383,3]
[329469094,1718382520690,-500.0,0.00024383,3]
[329469095,1718382520775,-500.0,0.00024383,3]
[329469096,1718382520837,-996.64,0.00024383,3]
[329469097,1718382520906,-568.32,0.00024383,3]
[329469098,1718382520973,-697.2,0.00024383,3]
[329469099,1718382521035,-849.21,0.00024383,3]
[329469100,1718382521116,-889.26,0.00024383,3]
[329469101,1718382521197,-500.0,0.00024383,3]
[329469102,1718382521241,-14486.89,0.00024383,3]
[329469103,1718382521346,-500.0,0.00024383,3]
[329469104,1718382521400,-5686.07,0.00024383,3]
[329469105,1718382521471,-781.91,0.00024383,3]
[329469106,1718382521514,-500.0,0.00024383,3]
[329469107,1718382521568,-1018.61,0.00024383,3]
[329469108,1718382521611,-585.92,0.00024383,3]
[329469109,1718382521660,-500.0,0.00024383,3]
[329469110,1718382521710,-2904.62,0.00024383,3]
[329469111,1718382521747,-510.01,0.00024383,3]
[329469112,1718382521814,-500.0,0.00024383,3]
[329469113,1718382521896,-500.0,0.00024383,3]
[329469114,1718382521968,-15237.24,0.00024383,3]
[329469115,1718382522068,-612.61,0.00024383,3]
[329469116,1718382522204,-1011.12,0.00024383,3]
[329469117,1718382522269,-500.0,0.00024383,3]
[329469118,1718382522381,-1390.77,0.00024383,3]
[329469119,1718382522467,-317.64373933,0.00024383,3]
[329469120,1718382522527,-774.15,0.00024383,3]
[329469121,1718382522592,-694.51,0.00024383,3]
[329469122,1718382522673,-500.0,0.00024383,3]
[329469123,1718382522767,-500.0,0.00024383,3]
[329469124,1718382522819,-6213.65,0.00024383,3]
[329469125,1718382522901,-500.0,0.00024383,3]
[329469126,1718382522948,-562.2,0.00024383,3]
[329469127,1718382522998,-500.0,0.00024383,3]
[329469128,1718382523085,-717.84,0.00024383,3]
[329469129,1718382523149,-500.0,0.00024383,3]
[329469130,1718382523195,-574.18,0.00024383,3]
[329469131,1718382523257,-1073.14,0.00024383,3]
[329469132,1718382523322,-500.0,0.00024383,3]
[329469133,1718382523406,-1385.47,0.00024383,3]
[329469134,1718382523483,-500.0,0.00024383,3]
[329469135,1718382523550,-2154.52,0.00024383,3]
[329469136,1718382523597,-1203.6,0.00024383,3]
[329469137,1718382523642,-2128.36,0.00024383,3]
[329469138,1718382523728,-500.0,0.00024383,3]
[329469139,1718382523791,-813.3,0.00024383,3]
[329469140,1718382523910,-679.7,0.00024383,3]
[329469141,1718382523975,-589.82,0.00024383,3]
[329469142,1718382524023,-1485.29,0.00024383,3]
[329469143,1718382524084,-543.05119405,0.00024383,3]
[329469144,1718382524159,-500.0,0.00024383,3]
[329469145,1718382524251,-518.56,0.00024383,3]
[329469146,1718382524314,-6705.15,0.00024383,3]
[329469147,1718382524401,-500.0,0.00024383,3]
[329469148,1718382524457,-1803.99,0.00024383,3]
[329469149,1718382524542,-500.0,0.00024383,3]
[329469150,1718382524607,-1009.01,0.00024383,3]
[329469151,1718382524692,-1256.75,0.00024383,3]
[329469152,1718382524769,-875.23,0.00024383,3]
[329469153,1718382524849,-500.0,0.00024383,3]
[329469154,1718382524902,-1971.49,0.00024383,3]
[329469155,1718382524978,-500.0,0.00024383,3]
[329469156,1718382525054,-2119.55,0.00024383,3]
[329469157,1718382525118,-555.05,0.00024383,7]
[329469158,1718382525177,-500.0,0.00024383,3]
[329469159,1718382525231,-719.59,0.00024383,3]
[329469160,1718382525288,-617.39,0.00024383,3]
[329469161,1718382525339,-500.0,0.00024383,3]
[329469162,1718382525404,-6051.71,0.00024383,3]
[329469163,1718382525451,-500.0,0.00024383,3]
[329469164,1718382525493,-500.0,0.00024383,3]
[329469165,1718382525553,-500.0,0.00024383,3]
[329469166,1718382525612,-652.05,0.00024383,3]
[329469167,1718382525667,-2728.66,0.00024383,3]
[329469168,1718382525708,-883.82,0.00024383,3]
[329469169,1718382525753,-160.27090934,0.00024383,3]
[329469170,1718382525798,-500.0,0.00024383,3]
[329469171,1718382526021,-5535.36,0.00024383,3]
[329469172,1718382526071,-500.0,0.00024383,3]
[329469173,1718382526145,-655.54,0.00024383,3]
[329469174,1718382526206,-500.0,0.00024383,3]
[329469175,1718382526265,-500.0,0.00024383,3]
[329469176,1718382526346,-9561.96,0.00024383,3]
[329469177,1718382526453,-675.91,0.00024383,3]
[329469178,1718382526499,-627.05,0.00024383,3]
[329469179,1718382526566,-4005.23,0.00024383,3]
[329469180,1718382526640,-500.0,0.00024383,3]
[329469181,1718382526700,-500.0,0.00024383,3]
[329469182,1718382526766,-3357.65,0.00024383,3]
[329469183,1718382526831,-1343.73,0.00024383,3]
[329469184,1718382526886,-809.51,0.00024383,3]
[329469185,1718382526938,-4519.59,0.00024383,3]
[329469186,1718382527007,-500.0,0.00024383,3]
[329469187,1718382527069,-2215.06,0.00024383,3]
[329469188,1718382527124,-500.0,0.00024383,3]
[329469189,1718382527166,-1739.3,0.00024383,3]
[329469190,1718382527212,-723.48,0.00024383,3]
[329469191,1718382527294,-500.0,0.00024383,3]
[329469192,1718382527337,-1992.44,0.00024383,3]
[329469193,1718382527425,-500.0,0.00024383,3]
[329469194,1718382527515,-772.64,0.00024383,3]
[329469195,1718382527575,-27747.66,0.00024383,3]
[329469196,1718382527644,-500.0,0.00024383,3]
[329469197,1718382527712,-2516.05,0.00024383,3]
[329469198,1718382527804,-500.0,0.00024383,3]
[329469199,1718382527884,-500.0,0.00024383,3]
[329469200,1718382527927,-500.0,0.00024383,3]
[329469201,1718382527987,-1783.93,0.00024383,3]
[329469202,1718382528044,-500.0,0.00024383,3]
[329469203,1718382528101,-1901.93,0.00024383,3]
[329469204,1718382528175,-247.17,0.00024383,3]
[329469205,1718382528219,-500.0,0.00024383,3]
[329469206,1718382528295,-835.68,0.00024383,3]
[329469207,1718382528388,-555.72,0.00024383,3]
[329469208,1718382528476,-695.78,0.00024383,3]
[329469209,1718382528540,-500.0,0.00024383,3]
[329469210,1718382528599,-993.02,0.00024383,3]
[329469211,1718382528681,-1219.21,0.00024383,3]
[329469212,1718382528734,-239.94127935,0.00024383,3]
[329469213,1718382528774,-500.0,0.00024383,3]
[329469214,1718382528827,-1713.33,0.00024383,3]
[329469215,1718382528891,-500.0,0.00024383,3]
[329469216,1718382528966,-598.03,0.00024383,3]
[329469217,1718382529019,-14613.87,0.00024383,3]
[329469218,1718382529077,-854.03,0.00024383,3]
[329469219,1718382529193,-151.0,0.00024383,7]
[329469220,1718382529261,-500.0,0.00024383,3]
[329469221,1718382529335,-3104.39,0.00024383,3]
[329469222,1718382529448,-664.58,0.00024383,3]
[329469223,1718382529542,-769.77,0.00024383,3]
[329469224,1718382529605,-2415.25,0.00024383,3]
[329469225,1718382529658,-1827.85,0.00024383,3]
[329469226,1718382529733,-500.0,0.00024383,3]
[329469227,1718382529883,-1720.0,0.00024383,3]
[329469228,1718382529938,-1564.92,0.00024383,3]
[329469229,1718382530026,-151.0,0.00024383,7]
[329469230,1718382530141,-500.0,0.00024383,3]
[329469231,1718382530230,-500.0,0.00024383,3]
[329469232,1718382530288,-500.0,0.00024383,3]
[329469233,1718382530429,-854.39,0.00024383,3]
[329469234,1718382530500,-6387.15,0.00024383,3]
[329469235,1718382530547,-500.0,0.00024383,3]
[329469236,1718382530620,-151.0,0.00024383,7]
[329469237,1718382530685,-500.0,0.00024383,3]
[329469238,1718382530768,-13294.24,0.00024383,3]
[329469239,1718382530877,-1580.61,0.00024383,3]
[329469240,1718382530933,-1627.07,0.00024383,3]
[329469241,1718382531007,-500.0,0.00024383,3]
[329469242,1718382531059,-500.0,0.00024383,3]
[329469243,1718382531140,-3930.51,0.00024383,3]
[329469244,1718382531201,-729.5,0.00024383,3]
[329469245,1718382531263,-2355.57,0.00024383,3]
[329469246,1718382531310,-500.0,0.00024383,3]
[329469247,1718382531409,-500.0,0.00024383,3]
[329469248,1718382531504,-500.0,0.00024383,3]
[329469249,1718382531621,-19021.1,0.00024383,3]
[329469250,1718382531677,-404.51138471,0.00024383,3]
[329469251,1718382531760,-782.99,0.00024383,3]
[329469252,1718382531826,-500.0,0.00024383,3]
[329469253,1718382531905,-636.02,0.00024383,3]
[329469254,1718382531958,-1333.68,0.00024383,3]
[329469255,1718382532055,-625.4,0.00024383,3]
[329469256,1718382532114,-583.12,0.00024383,3]
[329469257,1718382532345,-601.31,0.00024383,3]
[329469258,1718382532405,-1242.43,0.00024383,3]
[329469259,1718382532478,-431.45074362,0.00024383,3]
[329469260,1718382532539,-924.02,0.00024383,3]
[329469261,1718382532592,-500.0,0.00024383,3]
[329469262,1718382532672,-957.85,0.00024383,3]
[329469263,1718382532767,-260.98535,0.00024383,7]
[329469264,1718382532850,-1500.69,0.00024383,3]
[329469265,1718382532892,-500.0,0.00024383,3]
[329469266,1718382532953,-4281.66,0.00024383,3]
[329469267,1718382532993,-563.41,0.00024383,3]
[329469268,1718382533044,-1389.67,0.00024383,3]
[329469269,1718382533104,-507.25,0.00024383,3]
[329469270,1718382533145,-500.0,0.00024383,3]
[329469271,1718382533195,-500.0,0.00024383,3]
[329469272,1718382533262,-500.0,0.00024383,3]
[329469273,1718382533303,-1617.19,0.00024383,3]
[329469274,1718382533345,-1388.05,0.00024383,3]
[329469275,1718382533410,-531.36,0.00024383,3]
[329469276,1718382533469,-907.64,0.00024383,3]
[329469277,1718382533574,-500.0,0.00024383,3]
[329469278,1718382533616,-666.51,0.00024383,3]
[329469279,1718382533704,-500.0,0.00024383,3]
[329469280,1718382533767,-627.2,0.00024383,3]
[329469281,1718382533835,-4315.64,0.00024383,3]
[329469282,1718382533911,-552.89782948,0.00024383,3]
[329469283,1718382533984,-883.62,0.00024383,3]
[329469284,1718382534105,-6461.18,0.00024383,3]
[329469285,1718382534198,-500.0,0.00024383,3]
[329469286,1718382534358,-566.98,0.00024383,3]
[329469287,1718382534440,-5001.5,0.00024383,3]
[329469288,1718382534505,-500.0,0.00024383,3]
[329469289,1718382534585,-782.35,0.00024383,3]
[329469290,1718382534676,-500.0,0.00024383,3]
[329469291,1718382534753,-500.0,0.00024383,3]
[329469292,1718382534809,-1140.05,0.00024383,3]
[329469293,1718382534904,-2579.99,0.00024383,3]
[329469294,1718382535015,-2308.45,0.00024383,3]
[329469295,1718382535067,-1162.61,0.00024383,3]
[329469296,1718382535160,-151.0,0.00024383,7]
[329469297,1718382535276,-3943.94,0.00024383,3]
[329469298,1718382535358,-500.0,0.00024383,3]
[329469299,1718382535398,-584.26,0.00024383,3]
[329469300,1718382535450,-500.0,0.00024383,3]
[329469301,1718382535499,-500.0,0.00024383,3]
[329469302,1718382535603,-633.7,0.00024383,3]
[329469303,1718382535657,-632.74,0.00024383,3]
[329469304,1718382535731,-500.0,0.00024383,3]
[329469305,1718382535835,-7632.11,0.00024383,3]
[329469306,1718382535940,-151.0,0.00024383,7]
[329469307,1718382536033,-500.0,0.00024383,3]
[329469308,1718382536112,-500.0,0.00024383,3]
[329469309,1718382536180,-500.0,0.00024383,3]
[329469310,1718382536252,-1646.1,0.00024383,3]
[329469311,1718382536310,-808.35,0.00024383,3]
[329469312,1718382536464,-5505.8,0.00024383,3]
[329469313,1718382536524,-233.0724257,0.00024383,3]
[329469314,1718382536590,-2409.52,0.00024383,3]
[329469315,1718382536655,-500.0,0.00024383,3]
[329469316,1718382536780,-9934.23,0.00024383,3]
[329469317,1718382536834,-500.0,0.00024383,3]
[329469318,1718382536917,-500.0,0.00024383,3]
[329469319,1718382536991,-500.0,0.00024383,3]
[329469320,1718382537066,-718.69,0.00024383,3]
[329469321,1718382537139,-1962.95,0.00024383,3]
[329469322,1718382537184,-172.46104564,0.00024383,3]
[329469323,1718382537240,-500.0,0.00024383,3]
[329469324,1718382537284,-10300.99,0.00024383,3]
[329469325,1718382537341,-7744.77,0.00024383,3]
[329469326,1718382537384,-10981.89,0.00024383,3]
[329469327,1718382537430,-955.12,0.00024383,3]
[329469328,1718382537505,-9214.75,0.00024383,3]
[329469329,1718382537584,-500.0,0.00024383,3]
[329469330,1718382537666,-500.0,0.00024383,3]
[329469331,1718382537721,-151.0,0.00024383,7]
[329469332,1718382537791,-1760.27,0.00024383,3]
[329469333,1718382537878,-545.48,0.00024383,3]
[329469334,1718382537947,-1205.04,0.00024383,3]
[329469335,1718382538033,-765.24,0.00024383,3]
[329469336,1718382538096,-676.49,0.00024383,3]
[329469337,1718382538159,-500.0,0.00024383,3]
[329469338,1718382538236,-2190.75,0.00024383,3]
[329469339,1718382538291,-500.0,0.00024383,3]
[329469340,1718382538388,-500.0,0.00024383,3]
[329469341,1718382538481,-500.0,0.00024383,3]
[329469342,1718382538586,-366.11991403,0.00024383,2]
[329469343,1718382538631,-344.87,0.00024384,2]
[329469344,1718382538855,-154.75879082,0.00024389,2]
[329469345,1718382538933,-229.43757501,0.0002439,2]
[329469346,1718382538978,-777.0,0.00024411,2]
[329469347,1718382539035,-150.0,0.00024438,2]
[329469348,1718382539104,-467.52895994,0.0002448,2]
[329469349,1718382539186,-150.0,0.00024521,2]
[329469350,1718382539266,-150.0,0.00024521,2]
[329469351,1718382539325,-197.34577942,0.00024557,2]
[329469352,1718382539387,-688.68661903,0.00024557,2]
[329469353,1718382539441,-369.09294368,0.00024577,2]
[329469354,1718382539487,-369.09294368,0.00024602,2]
[329469355,1718382539538,-155.25371207,0.00024617,2]
[329469356,1718382539594,-166.66666666,0.00024627,2]
[329469357,1718382539663,-10131.09438,0.00024628,2]
[329469358,1718382539710,-175.68185,0.00024628,2]
[329469359,1718382539815,-411.056166,0.00024628,2]
[329469360,1718382539876,-241.360444,0.00024628,2]
[329469361,1718382539940,-205.528083,0.00024628,2]
[329469362,1718382539996,-153.03028188,0.00024633,2]
[329469363,1718382540085,-34213.5857831,0.00024647,2]
[329469364,1718382540129,-151.0,0.00024647,7]
[329469365,1718382540179,-151.0,0.00024647,7]
[329469366,1718382540264,-151.0,0.00024647,7]
[329469367,1718382540332,-151.0,0.00024647,7]
[329469368,1718382540391,-152.4048631,0.0002465,2]
[329469369,1718382540483,-1799.92,0.00024656,3]
[329469370,1718382540593,-1799.92,0.00024656,3]
[329469371,1718382540661,-156.90415022,0.00024656,10]
[329469372,1718382540732,-500.0,0.00024657,3]
[329469373,1718382540781,-500.0,0.00024657,3]
[329469374,1718382540864,-1188.89,0.00024657,3]
[329469375,1718382540928,-589.44,0.00024657,3]
[329469376,1718382540993,-820.19,0.00024657,3]
[329469377,1718382541062,-500.0,0.00024657,3]
[329469378,1718382541145,-500.0,0.00024657,2]
[329469379,1718382541198,-500.0,0.00024657,3]
[329469380,1718382541249,-672.8,0.00024657,3]
[329469381,1718382541292,-170.46016099,0.00024657,3]
[329469382,1718382541345,-441.40969891,0.00024657,3]
[329469383,1718382541396,-500.0,0.00024657,3]
[329469384,1718382541438,-174.47927003,0.00024657,3]
[329469385,1718382541477,-500.0,0.00024657,3]
[329469386,1718382541560,-598.96,0.00024657,3]
[329469387,1718382541645,-500.0,0.00024657,3]
[329469388,1718382541733,-500.0,0.00024657,3]
[329469389,1718382541784,-500.0,0.00024657,3]
[329469390,1718382541857,-500.0,0.00024657,3]
[329469391,1718382541922,-824.89,0.00024657,3]
[329469392,1718382541988,-500.0,0.00024657,3]
[329469393,1718382542088,-500.0,0.00024657,3]
[329469394,1718382542153,-500.0,0.00024657,3]
[329469395,1718382542221,-500.0,0.00024657,3]
[329469396,1718382542317,-534.58,0.00024657,3]
[329469397,1718382542406,-302.76133694,0.00024657,3]
[329469398,1718382542543,-500.0,0.00024657,3]
[329469399,1718382542653,-500.0,0.00024657,3]
[329469400,1718382542710,-530.1,0.00024657,3]
[329469401,1718382542764,-500.0,0.00024657,3]
[329469402,1718382542833,-500.0,0.00024657,3]
[329469403,1718382542886,-500.0,0.00024657,3]
[329469404,1718382542972,-906.26,0.00024657,3]
[329469405,1718382543028,-500.0,0.00024657,3]
[329469406,1718382543111,-500.0,0.00024657,3]
[329469407,1718382543188,-500.0,0.00024657,3]
[329469408,1718382543303,-500.0,0.00024657,3]
[329469409,1718382543412,-615.06,0.00024657,3]
[329469410,1718382543482,-1914.81,0.00024657,3]
[329469411,1718382543548,-500.0,0.00024657,3]
[329469412,1718382543690,-500.0,0.00024657,3]
[329469413,1718382543759,-509.34,0.00024657,3]
[329469414,1718382543861,-500.0,0.00024657,2]
[329469415,1718382543920,-500.0,0.00024657,3]
[329469416,1718382544011,-500.0,0.00024657,3]
[329469417,1718382544069,-500.0,0.00024657,3]
[329469418,1718382544147,-500.0,0.00024657,3]
[329469419,1718382544302,-807.09,0.00024657,3]
[329469420,1718382544371,-500.0,0.00024657,3]
[329469421,1718382544429,-500.0,0.00024657,3]
[329469422,1718382544508,-500.0,0.00024657,3]
[329469423,1718382544587,-500.0,0.00024657,3]
[329469424,1718382544682,-500.0,0.00024657,3]
[329469425,1718382544787,-500.0,0.00024657,3]
[329469426,1718382544835,-500.0,0.00024657,3]
[329469427,1718382544904,-504.9,0.00024657,3]
[329469428,1718382544950,-500.0,0.00024657,3]
[329469429,1718382545000,-500.0,0.00024657,3]
[329469430,1718382545036,-647.49,0.00024657,3]
[329469431,1718382545271,-500.0,0.00024657,3]
[329469432,1718382545341,-500.0,0.00024657,3]
[329469433,1718382545391,-597.28967348,0.00024657,3]
[329469434,1718382545442,-500.0,0.00024657,3]
[329469435,1718382545492,-529.94,0.00024657,3]
[329469436,1718382545547,-500.0,0.00024657,3]
[329469437,1718382545593,-500.0,0.00024657,3]
[329469438,1718382545654,-500.0,0.00024657,3]
[329469439,1718382545702,-500.0,0.00024657,3]
[329469440,1718382545752,-500.0,0.00024657,2]
[329469441,1718382545805,-741.65,0.00024657,3]
[329469442,1718382545859,-500.0,0.00024657,3]
[329469443,1718382545937,-526.0,0.00024657,3]
[329469444,1718382546036,-500.0,0.00024657,3]
[329469445,1718382546087,-500.0,0.00024657,3]
[329469446,1718382546152,-500.0,0.00024657,3]
[329469447,1718382546220,-500.0,0.00024657,3]
[329469448,1718382546319,-1039.58,0.00024657,3]
[329469449,1718382546392,-500.0,0.00024657,3]
[329469450,1718382546484,-619.14,0.00024657,3]
[329469451,1718382546611,-563.65,0.00024657,3]
[329469452,1718382546675,-500.0,0.00024657,3]
[329469453,1718382546763,-500.0,0.00024657,3]
[329469454,1718382546835,-500.0,0.00024657,3]
[329469455,1718382546949,-500.0,0.00024657,3]
[329469456,1718382547007,-500.0,0.00024657,3]
[329469457,1718382547067,-500.0,0.00024657,3]
[329469458,1718382547149,-500.0,0.00024657,3]
[329469459,1718382547246,-500.0,0.00024657,3]
[329469460,1718382547306,-500.0,0.00024657,3]
[329469461,1718382547373,-500.0,0.00024657,3]
[329469462,1718382547459,-500.0,0.00024657,3]
[329469463,1718382547539,-413.00177744,0.00024657,3]
[329469464,1718382547602,-1823.41,0.00024657,3]
[329469465,1718382547694,-163.489889,0.00024657,7]
[329469466,1718382547773,-178.12534261,0.00024657,3]
[329469467,1718382547842,-500.0,0.00024657,3]
[329469468,1718382547920,-500.0,0.00024657,3]
[329469469,1718382548014,-500.0,0.00024657,3]
[329469470,1718382548128,-500.0,0.00024657,3]
[329469471,1718382548185,-624.55,0.00024657,3]
[329469472,1718382548268,-500.0,0.00024657,3]
[329469473,1718382548371,-609.71815453,0.00024657,3]
[329469474,1718382548461,-606.88,0.00024657,3]
[329469475,1718382548528,-500.0,0.00024657,3]
[329469476,1718382548602,-500.0,0.00024657,3]
[329469477,1718382548661,-500.0,0.00024657,3]
[329469478,1718382548781,-500.0,0.00024657,3]
[329469479,1718382548848,-879.91,0.00024657,3]
[329469480,1718382548904,-500.0,0.00024657,3]
[329469481,1718382548960,-500.0,0.00024657,3]
[329469482,1718382549076,-500.0,0.00024657,3]